bitfinex/quotes_SOLUSD_20211001
["timestamp","ask_amount","ask_price","bid_price","bid_amount"]
[1633085831552,2.29,148.83,148.71,28.70806923]
[1633085832150,2.29,148.83,148.72,1.8968681]
[1633085832851,2.29,148.83,148.71,30.60306913]
[1633085833054,2.29,148.83,148.72,1.88840579]
[1633085833251,2.29,148.83,148.71,30.58904908]
[1633085833653,2.29,148.83,148.71,28.70806923]
[1633085834256,93.0,148.82,148.7,29.33776746]
[1633085834454,2.29,148.81,148.7,29.33776746]
[1633085834655,2.29,148.81,148.64,339.69965444]
[1633085834857,2.29,148.81,148.65,3.18436461]
[1633085835055,2.31088,148.81,148.65,3.18436461]
[1633085835652,2.31088,148.81,148.66,29.00786336]
[1633085837356,2.29,148.81,148.66,29.00786336]
[1633085837756,2.31088,148.81,148.66,29.00786336]
[1633085838159,2.29,148.81,148.66,29.00786336]
[1633085840558,2.31088,148.81,148.66,29.00786336]
[1633085844759,2.31088,148.81,148.66,25.68573336]
[1633085845860,0.02088,148.8,148.66,25.68573336]
[1633085846062,2.29,148.79,148.66,25.68573336]
[1633085846261,0.02088,148.78,148.66,25.68573336]
[1633085846464,2.31088,148.78,148.66,25.68573336]
[1633085846660,0.02088,148.77,148.66,25.68573336]
[1633085848463,2.29,148.76,148.66,25.68573336]
[1633085848868,2.29,148.76,148.64,339.69965444]
[1633085848869,0.02088,148.75,148.64,339.69965444]
[1633085849072,2.29,148.74,148.61,77.9445]
[1633085849268,2.31088,148.74,148.61,77.9445]
[1633085849869,2.31088,148.74,148.62,24.54962303]
[1633085850069,0.02088,148.73,148.62,24.54962303]
[1633085850268,2.29,148.72,148.62,24.54962303]
[1633085850469,0.02088,148.71,148.62,24.54962303]
[1633085850668,2.29,148.7,148.62,24.54962303]
[1633085853575,2.29,148.7,148.55,151.6222]
[1633085854576,2.29,148.7,148.56,24.07994303]
[1633085855576,0.02088,148.69,148.56,24.07994303]
[1633085855779,2.29,148.68,148.56,24.07994303]
[1633085855978,2.31088,148.68,148.59,467.38611259]
[1633085856178,2.31088,148.68,148.56,24.07994303]
[1633085857378,2.31088,148.68,148.48,81.7325]
[1633085857582,2.31088,148.68,148.49,3.08896146]
[1633085858382,2.31088,148.68,148.5,28.2349619]
[1633085858383,2.29,148.68,148.5,28.2349619]
[1633085858580,2.29,148.68,148.5,28.2558419]
[1633085858781,2.29,148.68,148.54,547.4325775]
[1633085858981,2.29,148.68,148.55,25.09884459]
[1633085861284,2.29,148.68,148.54,547.4325775]
[1633085861483,29.41979914,148.68,148.54,547.4325775]
[1633085861683,0.02088,148.67,148.45,2.29]
[1633085861883,2.29,148.66,148.45,2.29]
[1633085862086,0.02088,148.65,148.45,2.29]
[1633085862282,2.29,148.64,148.46,23.51852134]
[1633085864284,0.02088,148.63,148.46,23.51852134]
[1633085864486,2.29,148.62,148.46,23.51852134]
[1633085864687,2.31088,148.62,148.46,23.51852134]
[1633085867386,600.9,148.5,148.46,23.51852134]
[1633085868186,600.9,148.5,148.44,79.0]
[1633085869188,600.9,148.5,148.45,21.75403233]
[1633085870892,600.9,148.5,148.43,716.25476465]
[1633085871293,603.19,148.5,148.35,61.0]
[1633085871495,603.19,148.5,148.36,0.02088]
[1633085871694,603.19,148.5,148.35,61.0]
[1633085871896,603.19,148.5,148.36,25.62156333]
[1633085873696,0.02088,148.49,148.36,25.62156333]
[1633085873898,2.29,148.48,148.36,25.62156333]
[1633085874298,2.29,148.48,148.31,73.0911]
[1633085874498,29.85313247,148.48,148.31,73.0911]
[1633085874699,0.02088,148.47,148.31,73.0911]
[1633085874900,2.29,148.46,148.32,28.14107064]
[1633085875303,2.29,148.46,148.33,22.6554212]
[1633085875699,2.29,148.46,148.38,447.44507589]
[1633085875899,2.29,148.46,148.33,22.6554212]
[1633085876299,0.02088,148.45,148.33,22.6554212]
[1633085876500,2.29,148.44,148.33,22.6554212]
[1633085877701,2.29,148.44,148.33,22.1554212]
[1633085878725,2.31088,148.48,148.33,22.1554212]
[1633085878926,2.29,148.48,148.33,22.1554212]
[1633085879126,2.29,148.48,148.34,5.56560546]
[1633085879525,2.29,148.48,148.34,50.8853342]
[1633085879726,2.29,148.48,148.36,30.21192517]
[1633085880326,7.31328,148.67,148.38,102.0]
[1633085880532,57.18088,148.61,148.39,24.86189957]
[1633085880726,2.31088,148.6,148.39,24.86189957]
[1633085880926,0.02088,148.59,148.39,24.86189957]
[1633085881125,2.29,148.58,148.39,24.86189957]
[1633085881326,0.02088,148.57,148.4,74.9161]
[1633085881528,2.29,148.56,148.4,74.9161]
[1633085882126,2.29,148.56,148.49,471.50838441]
[1633085882326,2.29,148.56,148.5,25.30710116]
[1633085883029,2.29,148.56,148.41,78.6652]
[1633085883228,2.29,148.56,148.4,74.9161]
[1633085884027,2.29,148.56,148.41,22.74329215]
[1633085884930,2.29,148.56,148.42,0.02088]
[1633085885532,2.29,148.56,148.42,78.76578]
[1633085886032,2.29,148.56,148.42,0.02088]
[1633085886234,2.29,148.56,148.41,22.74329215]
[1633085886235,2.56876496,148.49,148.41,22.74329215]
[1633085886435,2.29,148.48,148.34,0.02088]
[1633085886634,2.29,148.48,148.33,0.02088]
[1633085886834,2.29,148.48,148.33,3.37584872]
[1633085887034,2.29,148.48,148.33,3.35496872]
[1633085887436,2.29,148.48,148.34,26.33836272]
[1633085888037,20.69002787,148.48,148.34,26.33836272]
[1633085888635,20.69002787,148.48,148.34,26.35924272]
[1633085888835,20.69002787,148.48,148.34,26.33836272]
[1633085889035,20.69002787,148.48,148.34,26.35924272]
[1633085889235,2.46209086,148.43,148.27,31.12955009]
[1633085889435,4.75209086,148.43,148.28,74.133]
[1633085889834,4.75209086,148.43,148.36,506.37784134]
[1633085890034,2.29,148.43,148.36,506.37784134]
[1633085890434,2.29,148.43,148.36,529.49294216]
[1633085891436,2.29,148.43,148.36,23.11510082]
[1633085892836,18.40002787,148.48,148.36,23.11510082]
[1633085893035,2.83,148.47,148.36,23.11510082]
[1633085896941,2.83,148.47,148.42,23.75167597]
[1633085899644,2.83,148.5,148.42,23.75167597]
[1633085900245,2.83,148.5,148.41,345.166696]
[1633085901043,0.02088,148.49,148.41,345.166696]
[1633085901245,2.83,148.48,148.41,345.166696]
[1633085901443,2.83,148.48,148.28,2.83]
[1633085901444,2.83,148.47,148.32,0.02088]
[1633085901644,2.85088,148.47,148.28,2.83]
[1633085902044,19.55717767,148.47,148.28,2.83]
[1633085902246,19.55717767,148.47,148.28,30.4932456]
[1633085902446,2.85088,148.47,148.29,21.3015768]
[1633085902651,2.85088,148.47,148.29,24.80282454]
[1633085902847,2.85088,148.47,148.29,21.3015768]
[1633085903046,18.8290122,148.47,148.29,21.3015768]
[1633085903251,18.8290122,148.47,148.3,74.7213]
[1633085903451,0.02088,148.46,148.29,21.3015768]
[1633085903649,2.83,148.45,148.3,75.8241]
[1633085903850,0.02088,148.44,148.3,75.8241]
[1633085904048,2.83,148.43,148.3,75.8241]
[1633085904249,2.85088,148.43,148.3,75.8241]
[1633085904448,2.85088,148.43,148.29,21.3015768]
[1633085904651,73.60088,148.43,148.29,21.3015768]
[1633085904849,73.60088,148.43,148.23,123.2954]
[1633085904850,90.01725665,148.43,148.23,123.2954]
[1633085905051,70.75,148.41,148.24,73.4613]
[1633085905252,2.83,148.4,148.23,46.0]
[1633085905450,2.83,148.4,148.21,0.02088]
[1633085905668,2.83,148.4,148.2,0.02088]
[1633085905853,70.75,148.39,148.2,25.54019423]
[1633085906053,2.83,148.38,148.2,25.51931423]
[1633085906250,87.44359887,148.38,148.2,25.51931423]
[1633085906452,70.77088,148.37,148.2,25.51931423]
[1633085906652,2.83,148.36,148.2,25.51931423]
[1633085906852,70.75,148.34,148.2,25.51931423]
[1633085907052,2.85088,148.33,148.2,25.51931423]
[1633085907252,2.85088,148.33,148.16,78.952]
[1633085907852,20.18447887,148.33,148.16,78.952]
[1633085908059,70.75,148.32,148.16,78.952]
[1633085908253,2.85088,148.31,148.17,25.17362184]
[1633085908452,0.02088,148.3,148.17,25.17362184]
[1633085908657,2.83,148.29,148.17,25.17362184]
[1633085908853,2.83,148.28,148.17,25.17362184]
[1633085910455,2.83,148.28,148.18,0.02088]
[1633085910856,2.83,148.28,148.17,24.71538184]
[1633085911258,2.83,148.28,148.17,24.69450184]
[1633085912859,0.02088,148.31,148.17,24.69450184]
[1633085913061,2.29,148.3,148.17,24.69450184]
[1633085913258,2.29,148.29,148.17,24.69450184]
[1633085914058,2.29,148.29,148.17,24.19450184]
[1633085915660,0.02088,148.28,148.17,24.19450184]
[1633085915861,2.29,148.27,148.17,24.19450184]
[1633085916059,2.31088,148.27,148.17,24.19450184]
[1633085917060,2.31088,148.27,148.16,78.952]
[1633085917960,2.31088,148.27,148.16,107.628538]
[1633085918160,2.31088,148.27,148.16,78.952]
[1633085918360,2.31088,148.27,148.17,553.54079016]
[1633085919064,2.31088,148.27,148.17,578.08149097]
[1633085920666,2.31088,148.27,148.17,578.04625621]
[1633085920867,2.31088,148.27,148.17,553.5055554]
[1633085921967,2.31088,148.27,148.17,24.16144221]
[1633085922166,19.42649884,148.27,148.17,24.16144221]
[1633085922367,86.70649884,148.27,148.16,78.952]
[1633085923168,19.42649884,148.27,148.16,78.952]
[1633085923367,19.42649884,148.27,148.16,106.06595706]
[1633085924972,19.42649884,148.27,148.16,78.452]
[1633085926374,50.34080959,148.27,148.16,78.452]
[1633085926576,50.255556,148.2,148.16,78.452]
[1633085926773,52.545556,148.2,148.15,28.81786422]
[1633085927375,52.545556,148.2,148.1,111.2342]
[1633085927574,52.545556,148.2,148.02,2.29]
[1633085927775,52.545556,148.2,147.98,85.80117988]
[1633085927776,52.545556,148.2,147.99,2.29]
[1633085927976,52.545556,148.2,147.98,274.7171]
[1633085928177,0.02088,148.19,147.98,274.7171]
[1633085928376,2.29,148.18,148.08,560.03963491]
[1633085928577,0.02088,148.17,148.08,532.68624353]
[1633085928777,2.29,148.16,148.08,532.68624353]
[1633085928977,2.31088,148.16,148.08,532.68624353]
[1633085930176,2.29,148.16,148.08,532.68624353]
[1633085930376,2.29,148.16,148.06,21.85089608]
[1633085931376,2.31088,148.16,148.06,21.85089608]
[1633085932180,2.29,148.16,148.06,21.85089608]
[1633085932777,2.29,148.16,148.06,16.85089608]
[1633085934379,2.29,148.19,148.06,16.85089608]
[1633085935179,2.29,148.19,148.11,558.99463615]
[1633085935381,2.29,148.19,148.12,26.34399672]
[1633085935782,2.29,148.19,148.11,558.99463615]
[1633085935979,31.06679976,148.19,148.02,0.02088]
[1633085936181,59.77763533,148.19,147.99,78.3517]
[1633085936382,17.66345896,148.18,147.99,78.3517]
[1633085936584,2.29,148.17,147.99,78.3517]
[1633085936781,30.74823532,148.17,148.0,21.99768625]
[1633085936984,18.36900563,148.16,148.0,21.99768625]
[1633085937181,2.31088,148.15,148.0,21.99768625]
[1633085937386,0.02088,148.14,148.0,21.99768625]
[1633085937589,2.29,148.13,148.0,21.99768625]
[1633085937784,2.31088,148.13,148.0,21.99768625]
[1633085939383,2.31088,148.13,147.97,600.08920475]
[1633085939584,59.66088,148.13,148.02,517.06486829]
[1633085939785,57.35,148.11,147.97,483.58920475]
[1633085939987,2.29,148.1,147.97,483.58920475]
[1633085940386,2.29,148.1,147.98,25.61066666]
[1633085941385,2.29,148.1,147.97,483.58920475]
[1633085941784,0.02088,148.09,147.97,483.58920475]
[1633085941986,2.29,148.08,147.97,483.58920475]
[1633085942184,2.29,148.07,147.97,483.58920475]
[1633085942384,2.29,148.07,147.98,29.3423987]
[1633085942987,2.29,148.07,147.97,483.58920475]
[1633085943986,69.59088,148.07,147.93,23.63527889]
[1633085944188,69.59088,148.07,147.96,24.56450931]
[1633085944388,2.31088,148.07,147.96,24.56450931]
[1633085944786,2.29,148.07,147.96,141.06450931]
[1633085945189,2.29,148.07,147.96,24.56450931]
[1633085945587,2.29,148.07,147.96,24.06450931]
[1633085946187,2.29,148.07,147.96,22.67890931]
[1633085947489,2.29,148.11,148.02,77.0]
[1633085948089,2.29,148.11,148.01,22.05330584]
[1633085950092,2.29,148.11,148.02,77.6653]
[1633085955296,78.93935118,148.11,148.0,426.7298819]
[1633085955500,78.93935118,148.11,147.91,1.95336566]
[1633085955698,0.02088,148.1,147.9,1.95353285]
[1633085955897,2.29,148.09,147.9,1.95353285]
[1633085956098,2.29,148.09,147.91,28.86628463]
[1633085956099,21.01032283,148.09,147.91,28.86628463]
[1633085956296,18.69944283,148.08,147.91,28.86628463]
[1633085956496,2.29,148.07,147.91,26.91354177]
[1633085956699,0.02088,148.06,147.91,26.91354177]
[1633085956895,2.29,148.05,147.91,26.91354177]
[1633085957096,0.02088,148.04,147.91,26.91354177]
[1633085957298,2.29,148.03,147.91,26.91354177]
[1633085957497,2.31088,148.03,147.89,1.95349658]
[1633085957702,19.33765746,148.02,147.87,131.1343]
[1633085957898,2.31088,148.01,147.87,131.1343]
[1633085958103,0.02088,148.0,147.87,131.1343]
[1633085958300,2.29,147.99,147.87,131.1343]
[1633085958499,0.02088,147.98,147.87,131.1343]
[1633085958699,2.29,147.97,147.87,131.1343]
[1633085961499,2.29,147.97,147.92,492.55943192]
[1633085962901,2.29,147.97,147.87,131.1343]
[1633085967207,0.0001,147.97,147.87,131.1343]
[1633085967405,2.29,148.0,147.87,131.1343]
[1633085967914,2.29,148.0,147.89,24.94404587]
[1633085971107,31.56477198,148.0,147.87,131.1343]
[1633085971312,0.02088,147.99,147.87,131.1343]
[1633085971508,2.29,147.98,147.87,131.1343]
[1633085971709,0.02088,147.97,147.87,131.1343]
[1633085971908,2.29,147.96,147.87,131.1343]
[1633085972109,2.31088,147.96,147.87,131.1343]
[1633085972311,19.32924841,147.96,147.87,131.1343]
[1633085972711,17.01836841,147.95,147.87,131.1343]
[1633085972910,2.29,147.94,147.87,131.1343]
[1633085975918,19.30836841,147.94,147.87,131.1343]
[1633085977938,2.29,147.94,147.87,131.1343]
[1633085979935,2.29,147.98,147.87,131.1343]
[1633085980540,0.02088,148.05,147.94,80.0]
[1633085980541,2.29,148.02,147.94,80.0]
[1633085981144,2.29,148.05,147.94,80.0]
[1633085981343,2.29,148.05,147.96,23.68610215]
[1633085991757,50.255556,148.0,147.96,23.68610215]
[1633085992954,47.964756,148.0,147.96,23.68610215]
[1633085996254,47.964756,148.0,147.93,74.8226]
[1633085997254,47.964756,148.0,147.94,24.30118363]
[1633085998455,47.964756,148.0,147.93,74.8226]
[1633085999464,47.964756,148.0,147.94,26.46019483]
[1633085999659,47.964756,148.0,147.93,74.8226]
[1633085999859,2.29,147.99,147.93,74.8226]
[1633086000660,2.29,147.99,147.94,27.60400962]
[1633086001258,47.964756,148.0,147.94,27.60400962]
[1633086001458,37.266056,148.0,147.94,27.60400962]
[1633086001661,0.02088,148.07,147.95,86.0]
[1633086001860,2.29,148.08,147.95,86.0]
[1633086002859,2.29,148.08,147.95,87.95415828]
[1633086003257,2.29,148.08,147.95,86.0]
[1633086003460,0.02088,148.12,147.96,2.29]
[1633086003662,0.02088,148.13,147.97,26.24495521]
[1633086003863,2.29,148.12,147.98,2.29]
[1633086004062,2.29,148.12,148.01,477.84086288]
[1633086004265,2.31088,148.15,148.02,22.64915474]
[1633086004664,0.02088,148.15,148.02,24.93915474]
[1633086004862,2.29,148.19,148.03,1.95324339]
[1633086005062,2.31088,148.19,148.04,2.29]
[1633086005262,2.31088,148.19,148.05,29.95852207]
[1633086005466,2.31088,148.19,148.05,31.91093343]
[1633086005665,2.31088,148.19,148.05,32.24852207]
[1633086005867,2.29,148.19,148.05,32.24852207]
[1633086006061,2.29,148.19,148.05,34.2011783]
[1633086006262,2.31088,148.23,148.06,1.95249992]
[1633086006461,2.31088,148.23,148.08,21.91091082]
[1633086006664,0.02088,148.23,148.08,26.152386]
[1633086006863,0.37421344,148.27,148.09,73.9104]
[1633086007065,0.37421344,148.27,148.11,28.18709923]
[1633086007266,0.37421344,148.27,148.12,2.29]
[1633086007463,0.35333344,148.27,148.12,2.29]
[1633086008062,0.35333344,148.27,148.15,408.1759744]
[1633086008267,0.35333344,148.27,148.16,25.64127115]
[1633086008464,0.35333344,148.27,148.16,103.39047115]
[1633086009664,0.35333344,148.27,148.16,25.64127115]
[1633086010266,0.35333344,148.27,148.16,105.18387115]
[1633086011467,0.35333344,148.27,148.16,25.64127115]
[1633086012069,0.35333344,148.27,148.16,105.27377115]
[1633086012469,0.35333344,148.27,148.16,102.98377115]
[1633086013069,0.35333344,148.27,148.16,23.35127115]
[1633086013267,0.35333344,148.27,148.16,98.55967115]
[1633086013668,0.35333344,148.27,148.16,23.35127115]
[1633086014871,0.35333344,148.27,148.13,2.29]
[1633086015268,15.56782826,148.27,148.13,2.29]
[1633086015467,15.58870826,148.27,148.13,2.29]
[1633086015670,0.02088,148.26,148.14,28.0404665]
[1633086015869,0.02088,148.26,148.08,74.7387]
[1633086016069,16.89,148.25,148.09,2.29]
[1633086016274,0.02088,148.24,148.09,2.29]
[1633086016469,2.29,148.23,148.09,2.29]
[1633086016670,18.29893926,148.23,148.09,2.29]
[1633086017069,16.00893926,148.22,148.08,74.7387]
[1633086017271,2.29,148.21,148.03,2.29]
[1633086017469,16.91888,148.2,148.03,2.29]
[1633086017675,2.31088,148.19,148.0,2.29]
[1633086017871,0.02088,148.18,148.01,22.00062757]
[1633086018068,2.29,148.17,148.01,22.00062757]
[1633086018269,0.02088,148.16,148.01,22.00062757]
[1633086018469,2.29,148.15,148.01,22.00062757]
[1633086018670,2.31088,148.15,148.01,22.00062757]
[1633086019069,0.02088,148.14,148.01,22.00062757]
[1633086019269,0.02088,148.14,147.93,75.1293]
[1633086019270,2.29,148.13,147.93,2.29]
[1633086019470,0.02088,148.12,147.93,2.29]
[1633086019671,2.29,148.11,147.93,2.29]
[1633086019884,2.31088,148.11,147.93,2.29]
[1633086020073,17.23698513,148.11,147.91,78.9188]
[1633086020272,17.23698513,148.11,147.92,27.27770399]
[1633086020674,17.23698513,148.11,147.93,76.0414]
[1633086020870,2.31088,148.11,147.94,2.29]
[1633086021071,2.31088,148.11,147.95,26.27900866]
[1633086021278,2.31088,148.11,147.96,2.29]
[1633086021675,2.29,148.11,147.96,2.29]
[1633086021873,2.29,148.11,148.0,29.80014486]
[1633086022675,2.29,148.11,148.0,105.64864486]
[1633086025679,2.29,148.11,148.0,184.74724486]
[1633086027282,2.29,148.11,148.0,29.80014486]
[1633086028081,17.02054957,148.1,148.0,29.80014486]
[1633086028278,2.29,148.09,148.0,29.80014486]
[1633086028478,2.31088,148.09,148.0,29.80014486]
[1633086028881,19.38776291,148.09,148.0,29.80014486]
[1633086030081,19.36688291,148.09,148.0,29.80014486]
[1633086030482,19.38776291,148.09,147.91,157.40808925]
[1633086030684,19.38776291,148.09,147.91,155.4556]
[1633086031484,19.38776291,148.09,147.92,27.56869397]
[1633086032484,19.38776291,148.09,147.92,31.81105539]
[1633086032686,19.36688291,148.09,147.92,31.81105539]
[1633086033588,19.36688291,148.09,147.92,84.53266018]
[1633086033986,2.29,148.09,147.93,1.95210299]
[1633086034188,2.29,148.09,147.95,27.19061668]
[1633086034386,2.29,148.09,147.96,2.29]
[1633086034987,2.29,148.09,148.0,347.27921704]
[1633086035188,2.29,148.09,148.0,373.95121344]
[1633086036588,2.29,148.09,148.0,26.6719964]
[1633086039192,2.29,148.09,147.94,2.29]
[1633086040193,2.29,148.09,147.95,24.59802016]
[1633086040395,20.18654901,148.09,147.95,24.59802016]
[1633086040594,0.02088,148.08,147.95,24.59802016]
[1633086040797,2.29,148.07,147.91,155.4556]
[1633086040998,0.02088,148.06,147.89,45.0]
[1633086041195,0.02088,148.06,147.88,4.24368585]
[1633086041196,17.91742901,148.06,147.88,1.95368585]
[1633086041395,2.29,148.05,147.88,1.95368585]
[1633086041596,20.18654901,148.05,147.88,1.95368585]
[1633086041795,0.02088,148.04,147.89,26.70632699]
[1633086041997,2.29,148.03,147.89,28.66028271]
[1633086042197,2.31088,148.03,147.9,75.6946]
[1633086042396,2.29,148.03,147.9,77.6489384]
[1633086042597,2.29,148.03,147.9,77.6698184]
[1633086042797,2.29,148.03,147.91,0.02088]
[1633086042998,2.29,148.03,147.92,26.38836134]
[1633086043199,2.29,148.07,147.93,0.02088]
[1633086043399,2.29,148.07,147.92,26.38836134]
[1633086043799,19.68821568,148.07,147.92,26.38836134]
[1633086043999,77.76458314,148.07,147.92,26.38836134]
[1633086044198,0.02088,148.06,147.92,26.38836134]
[1633086044398,2.29,148.05,147.92,26.38836134]
[1633086044607,0.02088,148.04,147.92,26.38836134]
[1633086044799,2.29,148.03,147.92,26.38836134]
[1633086045000,0.02088,148.02,147.92,546.20638967]
[1633086045201,56.29,148.01,147.92,546.20638967]
[1633086045600,2.29,148.01,147.92,546.20638967]
[1633086046401,49.29,148.01,147.92,546.20638967]
[1633086047802,2.29,148.04,147.92,548.16104972]
[1633086048002,2.29,148.04,147.93,1.95450173]
[1633086048203,2.29,148.04,147.95,28.43143433]
[1633086048402,2.29,148.04,147.95,30.38595349]
[1633086048802,2.29,148.08,147.96,1.95440809]
[1633086050103,2.29,148.08,147.95,30.40683823]
[1633086050303,2.29,148.08,147.95,28.43143433]
[1633086051105,2.29,148.08,147.95,30.38598575]
[1633086051303,2.29,148.08,147.95,28.43143433]
[1633086052303,699.80952168,148.07,147.95,28.43143433]
[1633086052503,699.80952168,148.07,147.95,30.38596261]
[1633086052904,2.29,148.08,147.95,30.38596261]
[1633086053304,2.29,148.08,147.95,28.43143433]
[1633086053507,19.16821568,148.08,147.95,28.43143433]
[1633086054107,48.13849338,148.08,147.95,28.43143433]
[1633086055407,79.62069425,148.08,147.95,28.43143433]
[1633086055607,0.02088,148.07,147.95,28.43143433]
[1633086055806,2.29,148.06,147.95,28.43143433]
[1633086056007,2.31088,148.06,147.95,28.43143433]
[1633086057008,19.18909568,148.06,147.95,28.43143433]
[1633086059012,19.18909568,148.06,147.94,74.185]
[1633086059211,79.64157425,148.06,147.94,74.185]
[1633086059410,0.02088,148.05,147.94,74.185]
[1633086059612,2.29,148.04,147.89,80.38349621]
[1633086059810,2.29,148.04,147.9,73.5135]
[1633086059811,0.02088,148.03,147.9,73.5135]
[1633086060010,2.29,148.02,147.91,22.02124503]
[1633086063415,2.29,148.02,147.91,23.97630368]
[1633086064018,2.29,148.02,147.92,1.95508443]
[1633086064618,2.29,148.02,147.91,22.02124503]
[1633086064619,2.29,148.02,147.93,1.95486831]
[1633086064816,2.29,148.02,147.95,1.95457796]
[1633086065016,2.29,148.06,147.95,1.95457796]
[1633086065216,2.29,148.06,147.97,29.70235014]
[1633086067017,2.29,148.06,147.95,1.95484357]
[1633086067218,19.1754379,148.06,147.93,1.95516021]
[1633086067419,699.83040168,148.05,147.92,1.95536557]
[1633086067617,2.29,148.04,147.9,487.42567122]
[1633086067818,50.3583156,148.04,147.9,487.42567122]
[1633086068017,17.75464012,148.03,147.91,22.30335053]
[1633086068219,2.31088,148.02,147.91,22.30335053]
[1633086068421,20.04464012,148.02,147.91,22.30335053]
[1633086069421,20.04464012,148.02,147.9,487.42567122]
[1633086070419,20.04464012,148.02,147.91,21.50563094]
[1633086070618,20.04464012,148.02,147.92,1.95514022]
[1633086070819,20.02376012,148.02,147.92,1.95514022]
[1633086071420,20.02376012,148.02,147.91,100.36756268]
[1633086071621,20.02376012,148.02,147.92,1.95518661]
[1633086072421,20.02376012,148.02,147.93,1.95505762]
[1633086072621,2.29,148.02,147.94,21.62237926]
[1633086072823,2.29,148.02,147.94,23.57724882]
[1633086073023,2.29,148.05,147.95,1.95468624]
[1633086073224,2.29,148.05,147.95,79.18928624]
[1633086073424,2.29,148.05,147.97,23.17345327]
[1633086073624,2.29,148.08,147.97,23.17345327]
[1633086074426,2.29,148.08,148.01,27.26818759]
[1633086077228,2.29,148.11,148.01,27.26818759]
[1633086082229,19.44390764,148.11,148.01,27.26818759]
[1633086087433,19.99390764,148.11,148.01,27.26818759]
[1633086088934,2.84,148.11,148.01,27.26818759]
[1633086089739,2.86088,148.15,148.02,2.84]
[1633086090136,2.84,148.15,148.02,2.84]
[1633086091137,2.84,148.18,148.02,2.84]
[1633086091538,0.02088,148.17,148.02,28.07840615]
[1633086091741,2.84,148.16,148.02,28.07840615]
[1633086091940,0.02088,148.15,148.01,106.93458759]
[1633086092138,2.84,148.14,148.01,106.93458759]
[1633086092342,0.02088,148.13,148.01,106.93458759]
[1633086092538,2.84,148.12,148.01,106.93458759]
[1633086093140,2.84,148.12,148.0,412.79707757]
[1633086093338,0.02088,148.11,148.0,412.79707757]
[1633086093538,2.84,148.1,148.0,412.79707757]
[1633086093742,4.81685514,148.1,148.0,412.79707757]
[1633086094138,32.9822479,148.1,148.0,412.79707757]
[1633086094339,1.9562526,148.09,148.0,412.79707757]
[1633086094541,2.84,148.08,148.0,412.79707757]
[1633086095144,2.84,148.08,147.99,27.74607701]
[1633086095944,2.84,148.08,147.94,72.4527]
[1633086096945,2.84,148.08,147.95,23.6290423]
[1633086097966,2.84,148.08,147.94,72.4527]
[1633086098165,0.02088,148.07,147.94,72.4527]
[1633086098365,2.84,148.06,147.94,72.4527]
[1633086099366,22.60324641,148.06,147.94,72.4527]
[1633086099970,93.54324641,148.06,147.94,72.4527]
[1633086100170,72.87694799,148.04,147.94,72.4527]
[1633086100368,4.79169581,148.03,147.94,72.4527]
[1633086100570,82.10069377,148.03,147.94,72.4527]
[1633086100775,61.43346377,148.02,147.94,72.4527]
[1633086100968,93.84,148.01,147.93,75.7079]
[1633086101170,93.84,148.01,147.88,195.0093]
[1633086101369,111.64635,148.01,147.88,270.7487]
[1633086101574,111.64635,148.01,147.89,23.64472282]
[1633086101969,20.64635,148.01,147.89,23.64472282]
[1633086102770,39.84,148.01,147.89,25.60086996]
[1633086103369,39.84,148.01,147.89,23.64472282]
[1633086103771,19.84,148.01,147.89,23.64472282]
[1633086104871,48.84,148.01,147.89,23.64472282]
[1633086105070,48.84,148.01,147.9,529.44899399]
[1633086108170,67.44079445,148.01,147.9,529.44899399]
[1633086109371,45.017097,148.0,147.9,529.44899399]
[1633086109572,2.84,147.99,147.9,529.44899399]
[1633086110371,2.84,147.99,147.87,131.1343]